[Event "*** Titled Tuesday Blitz"]
[Site "Chess.com"]
[Date "2020.04.14"]
[Round "1"]
[White "Rish_97"]
[Black "Saloni1299"]
[Result "1-0"]
[WhiteElo "2587"]
[BlackElo "2210"]
[TimeControl "180+1"]
[EndTime "10:06:52 PDT"]
[Termination "Rish_97 won by resignation"]

1. e4 {[%clk 0:03:00.9]} 1... e6 {[%clk 0:02:59.6]} 2. d4 {[%clk 0:03:00.4]}
2... d5 {[%clk 0:02:59.8]} 3. Nc3 {[%clk 0:02:56.8]} 3... Bb4 {[%clk 0:02:59.3]}
4. exd5 {[%clk 0:02:56.7]} 4... exd5 {[%clk 0:02:59]} 5. Bd3 {[%clk 0:02:56.6]}
5... c6 {[%clk 0:02:59.2]} 6. Nf3 {[%clk 0:02:47.3]} 6... Nf6 {[%clk 0:02:53.6]}
7. O-O {[%clk 0:02:45.2]} 7... O-O {[%clk 0:02:53.7]} 8. a3 {[%clk 0:02:20.1]}
8... Bd6 {[%clk 0:02:50.7]} 9. Ne5 {[%clk 0:02:14.5]} 9... Nbd7 {[%clk 0:02:44]}
10. Bf4 {[%clk 0:02:13.4]} 10... Qc7 {[%clk 0:02:40.9]} 11. Re1 {[%clk
0:02:13.5]} 11... Re8 {[%clk 0:02:34.5]} 12. Nxd7 {[%clk 0:01:26.6]} 12... Bxd7
{[%clk 0:02:33.5]} 13. Bxd6 {[%clk 0:01:25.9]} 13... Qxd6 {[%clk 0:02:33.7]} 14.
Qf3 {[%clk 0:01:26.2]} 14... Rxe1+ {[%clk 0:02:31.7]} 15. Rxe1 {[%clk
0:01:25.6]} 15... Re8 {[%clk 0:02:32.6]} 16. Rxe8+ {[%clk 0:01:25.4]} 16... Bxe8
{[%clk 0:02:33.5]} 17. Qg3 {[%clk 0:01:25.5]} 17... Qxg3 {[%clk 0:02:32.6]} 18.
hxg3 {[%clk 0:01:26.4]} 18... Kf8 {[%clk 0:02:27.2]} 19. f3 {[%clk 0:01:26.7]}
19... h5 {[%clk 0:02:26.1]} 20. Kf2 {[%clk 0:01:26.9]} 20... Ke7 {[%clk
0:02:26.3]} 21. Ne2 {[%clk 0:01:23.1]} 21... Kd6 {[%clk 0:02:25.8]} 22. c3
{[%clk 0:01:23.3]} 22... b6 {[%clk 0:02:19.2]} 23. Ke3 {[%clk 0:01:22.7]} 23...
c5 {[%clk 0:02:18]} 24. Kf4 {[%clk 0:01:15.3]} 24... g6 {[%clk 0:02:09.7]} 25.
Kg5 {[%clk 0:01:04.3]} 25... Ke7 {[%clk 0:02:06.4]} 26. dxc5 {[%clk 0:01:00.2]}
26... bxc5 {[%clk 0:02:05.5]} 27. b4 {[%clk 0:01:00.9]} 27... cxb4 {[%clk
0:01:58.4]} 28. axb4 {[%clk 0:01:01]} 28... Bc6 {[%clk 0:01:52.3]} 29. Nd4
{[%clk 0:01:01]} 29... Bd7 {[%clk 0:01:51.5]} 30. Bb5 {[%clk 0:00:58.5]} 30...
Ne8 {[%clk 0:01:34.1]} 31. Kf4 {[%clk 0:00:52.2]} 31... f6 {[%clk 0:01:29.2]}
32. Ke3 {[%clk 0:00:46.8]} 32... Nd6 {[%clk 0:01:27]} 33. Bc6 {[%clk 0:00:43.9]}
33... Nc4+ {[%clk 0:01:17.5]} 34. Ke2 {[%clk 0:00:43.9]} 34... Kd6 {[%clk
0:01:13.3]} 35. Bxd7 {[%clk 0:00:41.2]} 35... Kxd7 {[%clk 0:01:14.2]} 36. Kd3
{[%clk 0:00:41.1]} 36... a6 {[%clk 0:01:10.5]} 37. Nb3 {[%clk 0:00:41]} 37...
Kc6 {[%clk 0:01:06.1]} 38. Kd4 {[%clk 0:00:41.3]} 38... Nd6 {[%clk 0:01:00.4]}
39. Na5+ {[%clk 0:00:41.2]} 39... Kb6 {[%clk 0:00:55.9]} 40. Kxd5 {[%clk
0:00:42.1]} 40... Nb5 {[%clk 0:00:56.2]} 41. c4 {[%clk 0:00:40.6]} 41... Nc3+
{[%clk 0:00:56.4]} 42. Kd6 {[%clk 0:00:40.1]} 42... Na2 {[%clk 0:00:55]} 43. c5+
{[%clk 0:00:39.9]} 43... Ka7 {[%clk 0:00:53]} 44. c6 {[%clk 0:00:40.3]} 44...
Kb8 {[%clk 0:00:49.6]} 45. c7+ {[%clk 0:00:36.7]} 45... Kc8 {[%clk 0:00:48.6]}
46. Nc6 {[%clk 0:00:37.1]} 46... Nxb4 {[%clk 0:00:45.2]} 47. Nxb4 {[%clk
0:00:36.4]} 47... a5 {[%clk 0:00:44.2]} 48. Nd5 {[%clk 0:00:36.7]} 1-0

[Event "*** Titled Tuesday Blitz"]
[Site "Chess.com"]
[Date "2020.04.14"]
[Round "1"]
[White "picturesquecheck"]
[Black "Mr_Sinigami"]
[Result "0-1"]
[WhiteElo "2201"]
[BlackElo "2580"]
[TimeControl "180+1"]
[EndTime "10:06:52 PDT"]
[Termination "Mr_Sinigami won by resignation"]

1. e4 {[%clk 0:03:00.9]} 1... c5 {[%clk 0:03:00]} 2. Nf3 {[%clk 0:02:58.8]} 2...
Nc6 {[%clk 0:03:00.1]} 3. d4 {[%clk 0:02:57.9]} 3... cxd4 {[%clk 0:03:01]} 4.
Nxd4 {[%clk 0:02:58.8]} 4... Nf6 {[%clk 0:02:57.1]} 5. Nc3 {[%clk 0:02:58.7]}
5... e5 {[%clk 0:02:57.5]} 6. Ndb5 {[%clk 0:02:58.2]} 6... d6 {[%clk 0:02:57.5]}
7. Bg5 {[%clk 0:02:57.9]} 7... a6 {[%clk 0:02:56.3]} 8. Na3 {[%clk 0:02:57.5]}
8... b5 {[%clk 0:02:56.5]} 9. Nd5 {[%clk 0:02:57.6]} 9... Be7 {[%clk 0:02:56.4]}
10. Bxf6 {[%clk 0:02:57.6]} 10... Bxf6 {[%clk 0:02:56]} 11. c3 {[%clk
0:02:58.5]} 11... Bg5 {[%clk 0:02:55.6]} 12. Nc2 {[%clk 0:02:58.5]} 12... O-O
{[%clk 0:02:54.6]} 13. a4 {[%clk 0:02:58.5]} 13... bxa4 {[%clk 0:02:48.6]} 14.
Rxa4 {[%clk 0:02:59.4]} 14... a5 {[%clk 0:02:47.7]} 15. Bc4 {[%clk 0:02:57]}
15... Rb8 {[%clk 0:02:45.9]} 16. b3 {[%clk 0:02:56.4]} 16... Kh8 {[%clk
0:02:46.2]} 17. O-O {[%clk 0:02:53.5]} 17... Bh6 {[%clk 0:02:46.3]} 18. Qd3
{[%clk 0:02:43]} 18... f5 {[%clk 0:02:33.2]} 19. f3 {[%clk 0:02:33.2]} 19...
fxe4 {[%clk 0:01:47.6]} 20. fxe4 {[%clk 0:02:32.6]} 20... Rxf1+ {[%clk
0:01:40.7]} 21. Qxf1 {[%clk 0:02:32]} 21... Be6 {[%clk 0:01:41]} 22. g3 {[%clk
0:02:15.2]} 22... Ne7 {[%clk 0:01:33.2]} 23. Nxe7 {[%clk 0:02:11.8]} 23... Qxe7
{[%clk 0:01:34.1]} 24. Rxa5 {[%clk 0:02:02.2]} 24... Rf8 {[%clk 0:01:29.9]} 25.
Qe2 {[%clk 0:01:58.3]} 25... Qc7 {[%clk 0:01:12.2]} 26. Ra1 {[%clk 0:01:50.5]}
26... Bxc4 {[%clk 0:00:53.6]} 27. Qxc4 {[%clk 0:01:48.3]} 27... Qb6+ {[%clk
0:00:53.8]} 28. Kh1 {[%clk 0:01:40.9]} 28... Qf2 {[%clk 0:00:53.1]} 29. Qd3
{[%clk 0:01:36.8]} 29... Bg5 {[%clk 0:00:22.5]} 30. Rg1 {[%clk 0:01:32.7]} 30...
Rf3 {[%clk 0:00:13.3]} 31. Qxd6 {[%clk 0:01:17.9]} 31... h6 {[%clk 0:00:13.6]}
32. Qd1 {[%clk 0:01:11]} 32... Rxc3 {[%clk 0:00:10]} 33. Nb4 {[%clk 0:01:02.9]}
33... Rc1 {[%clk 0:00:10.2]} 34. Qxc1 {[%clk 0:01:01.4]} 34... Bxc1 {[%clk
0:00:10]} 35. Rxc1 {[%clk 0:01:02.3]} 35... Qf3+ {[%clk 0:00:10.4]} 36. Kg1
{[%clk 0:00:57.9]} 36... Qe3+ {[%clk 0:00:11.3]} 0-1

[Event "*** Titled Tuesday Blitz"]
[Site "Chess.com"]
[Date "2020.04.14"]
[Round "1"]
[White "Storne89"]
[Black "SHIVACalypso"]
[Result "1/2-1/2"]
[WhiteElo "2597"]
[BlackElo "2250"]
[TimeControl "180+1"]
[EndTime "10:06:53 PDT"]
[Termination "Game drawn by repetition"]

1. e4 {[%clk 0:03:00.3]} 1... e6 {[%clk 0:02:56.8]} 2. d4 {[%clk 0:02:59]} 2...
d5 {[%clk 0:02:56.7]} 3. Nc3 {[%clk 0:02:59]} 3... Nf6 {[%clk 0:02:56.3]} 4. Bg5
{[%clk 0:02:57.5]} 4... dxe4 {[%clk 0:02:55.7]} 5. Nxe4 {[%clk 0:02:58.4]} 5...
Be7 {[%clk 0:02:55.9]} 6. Bxf6 {[%clk 0:02:58.8]} 6... gxf6 {[%clk 0:02:56.2]}
7. g3 {[%clk 0:02:58.7]} 7... f5 {[%clk 0:02:51.2]} 8. Nc3 {[%clk 0:02:58.5]}
8... Bf6 {[%clk 0:02:47.3]} 9. Nge2 {[%clk 0:02:55.3]} 9... Nc6 {[%clk
0:02:43.7]} 10. d5 {[%clk 0:02:46.7]} 10... exd5 {[%clk 0:02:36.1]} 11. Qxd5
{[%clk 0:02:46.7]} 11... Be6 {[%clk 0:02:26.7]} 12. Qxd8+ {[%clk 0:02:41.2]}
12... Rxd8 {[%clk 0:02:27.6]} 13. a3 {[%clk 0:02:35.7]} 13... Ke7 {[%clk
0:02:09.2]} 14. Bg2 {[%clk 0:02:34.7]} 14... Nd4 {[%clk 0:02:00.3]} 15. Nxd4
{[%clk 0:02:29.3]} 15... Bxd4 {[%clk 0:01:59]} 16. Nd1 {[%clk 0:02:28]} 16... c6
{[%clk 0:01:51]} 17. O-O {[%clk 0:02:25]} 17... Bb6 {[%clk 0:01:49.4]} 18. Rc1
{[%clk 0:02:08]} 18... Rd2 {[%clk 0:01:47.1]} 19. Nc3 {[%clk 0:02:08.4]} 19...
Rhd8 {[%clk 0:01:37.6]} 20. Na4 {[%clk 0:02:08.6]} 20... Bd4 {[%clk 0:01:27]}
21. c3 {[%clk 0:02:01.8]} 21... Bb6 {[%clk 0:01:21.9]} 22. b4 {[%clk 0:01:55.3]}
22... Bb3 {[%clk 0:01:16.7]} 23. Rfe1+ {[%clk 0:01:50.7]} 23... Kf6 {[%clk
0:01:15.4]} 24. Nxb6 {[%clk 0:01:49.6]} 24... axb6 {[%clk 0:01:16.3]} 25. Bf3
{[%clk 0:01:39.2]} 25... b5 {[%clk 0:01:07.2]} 26. Re3 {[%clk 0:01:06.9]} 26...
Ra2 {[%clk 0:01:03.5]} 27. Re2 {[%clk 0:01:04]} 27... Rxa3 {[%clk 0:00:59.7]}
28. Re3 {[%clk 0:00:58.3]} 28... Bc4 {[%clk 0:00:57.2]} 29. g4 {[%clk
0:00:57.5]} 29... Rd2 {[%clk 0:00:52.2]} 30. gxf5 {[%clk 0:00:45.5]} 30... Raa2
{[%clk 0:00:51.9]} 31. Be4 {[%clk 0:00:40.9]} 31... Rxf2 {[%clk 0:00:48.7]} 32.
Rh3 {[%clk 0:00:41.5]} 32... Bd5 {[%clk 0:00:47.1]} 33. Bxd5 {[%clk 0:00:39.3]}
33... cxd5 {[%clk 0:00:48]} 34. Rxh7 {[%clk 0:00:39]} 34... Rac2 {[%clk
0:00:40.7]} 35. Rd1 {[%clk 0:00:34.6]} 35... Rfd2 {[%clk 0:00:38.8]} 36. Rf1
{[%clk 0:00:34.9]} 36... Rxc3 {[%clk 0:00:36.4]} 37. Rh5 {[%clk 0:00:35.5]}
37... Rc4 {[%clk 0:00:34.1]} 38. Rh6+ {[%clk 0:00:35.6]} 38... Ke7 {[%clk
0:00:33.5]} 39. f6+ {[%clk 0:00:35.7]} 39... Ke6 {[%clk 0:00:33]} 40. Rh8 {[%clk
0:00:36]} 40... Rxb4 {[%clk 0:00:31.5]} 41. Re8+ {[%clk 0:00:36.1]} 41... Kd6
{[%clk 0:00:31]} 42. Rd8+ {[%clk 0:00:36.3]} 42... Ke6 {[%clk 0:00:30.2]} 43.
Re8+ {[%clk 0:00:36.3]} 43... Kd6 {[%clk 0:00:30.5]} 44. Rd8+ {[%clk 0:00:36.6]}
44... Ke6 {[%clk 0:00:30.8]} 45. Re8+ {[%clk 0:00:36.8]} 1/2-1/2

[Event "*** Titled Tuesday Blitz"]
[Site "Chess.com"]
[Date "2020.04.14"]
[Round "1"]
[White "flomarechot"]
[Black "MateSchmate"]
[Result "0-1"]
[WhiteElo "2187"]
[BlackElo "2573"]
[TimeControl "180+1"]
[EndTime "10:06:53 PDT"]
[Termination "MateSchmate won on time"]

1. d4 {[%clk 0:02:58.7]} 1... c5 {[%clk 0:02:56.8]} 2. d5 {[%clk 0:02:54]} 2...
e5 {[%clk 0:02:56.9]} 3. e4 {[%clk 0:02:52]} 3... d6 {[%clk 0:02:57.1]} 4. c4
{[%clk 0:02:51.6]} 4... g6 {[%clk 0:02:57.6]} 5. Nc3 {[%clk 0:02:50.3]} 5... Bg7
{[%clk 0:02:57.8]} 6. g3 {[%clk 0:02:44.6]} 6... Ne7 {[%clk 0:02:57.6]} 7. Bg2
{[%clk 0:02:44.9]} 7... O-O {[%clk 0:02:57.9]} 8. Nf3 {[%clk 0:02:45.1]} 8... f5
{[%clk 0:02:58.2]} 9. O-O {[%clk 0:02:39.3]} 9... Nd7 {[%clk 0:02:58]} 10. Re1
{[%clk 0:02:24.4]} 10... Nf6 {[%clk 0:02:57.6]} 11. Bg5 {[%clk 0:02:10.7]} 11...
h6 {[%clk 0:02:52.5]} 12. Bd2 {[%clk 0:01:58.7]} 12... a6 {[%clk 0:02:50.9]} 13.
Qc1 {[%clk 0:01:50.1]} 13... Kh7 {[%clk 0:02:50]} 14. a3 {[%clk 0:01:44.9]}
14... fxe4 {[%clk 0:02:46.4]} 15. Nxe4 {[%clk 0:01:43.8]} 15... Bg4 {[%clk
0:02:46.3]} 16. h3 {[%clk 0:01:07.7]} 16... Bxf3 {[%clk 0:01:57]} 17. Bxf3
{[%clk 0:01:07.7]} 17... Nfxd5 {[%clk 0:01:56.1]} 18. cxd5 {[%clk 0:01:00.4]}
18... Rxf3 {[%clk 0:01:54.8]} 19. Re3 {[%clk 0:00:50.4]} 19... Rxe3 {[%clk
0:01:54.4]} 20. Bxe3 {[%clk 0:00:49.8]} 20... Nxd5 {[%clk 0:01:54.9]} 21. Qd2
{[%clk 0:00:45.9]} 21... Nxe3 {[%clk 0:01:54.5]} 22. fxe3 {[%clk 0:00:45.9]}
22... d5 {[%clk 0:01:46.5]} 23. Nxc5 {[%clk 0:00:40.9]} 23... Qb6 {[%clk
0:01:26.1]} 24. b4 {[%clk 0:00:20.1]} 24... d4 {[%clk 0:01:25.2]} 25. Rf1 {[%clk
0:00:15.9]} 25... Rf8 {[%clk 0:01:22.7]} 26. Rxf8 {[%clk 0:00:12.6]} 26... Bxf8
{[%clk 0:01:23.6]} 27. Nd7 {[%clk 0:00:12.7]} 27... Qd6 {[%clk 0:01:08.1]} 28.
Nxf8+ {[%clk 0:00:12.5]} 28... Qxf8 {[%clk 0:01:09]} 29. exd4 {[%clk 0:00:11.9]}
29... Qf3 {[%clk 0:01:06.3]} 30. dxe5 {[%clk 0:00:07.6]} 30... Qxg3+ {[%clk
0:01:06]} 31. Kf1 {[%clk 0:00:06.7]} 31... Qxe5 {[%clk 0:01:02.5]} 32. Qd7+
{[%clk 0:00:06.1]} 32... Qg7 {[%clk 0:01:03]} 33. Qd5 {[%clk 0:00:05.1]} 33...
Qf6+ {[%clk 0:01:01.5]} 34. Ke2 {[%clk 0:00:04.3]} 34... Qe7+ {[%clk 0:01:01.3]}
35. Kd3 {[%clk 0:00:04.4]} 35... Kg7 {[%clk 0:01:00.6]} 36. Qd4+ {[%clk
0:00:04]} 36... Kf7 {[%clk 0:01:00.8]} 37. b5 {[%clk 0:00:02.7]} 37... Qxa3+
{[%clk 0:00:57.3]} 38. Ke4 {[%clk 0:00:02.1]} 38... Qe7+ {[%clk 0:00:53.3]} 39.
Qe5 {[%clk 0:00:02]} 39... Qxe5+ {[%clk 0:00:52.9]} 40. Kxe5 {[%clk 0:00:02.6]}
40... axb5 {[%clk 0:00:53.8]} 41. Kd5 {[%clk 0:00:02.9]} 41... b6 {[%clk
0:00:52.5]} 0-1

[Event "*** Titled Tuesday Blitz"]
[Site "Chess.com"]
[Date "2020.04.14"]
[Round "1"]
[White "Jumbo"]
[Black "Dixit_Nikhil"]
[Result "1-0"]
[WhiteElo "2859"]
[BlackElo "2458"]
[TimeControl "180+1"]
[EndTime "10:06:54 PDT"]
[Termination "Jumbo won by resignation"]

1. d4 {[%clk 0:03:00.9]} 1... Nf6 {[%clk 0:02:59.1]} 2. Nf3 {[%clk 0:03:00.1]}
2... g6 {[%clk 0:02:55.2]} 3. c4 {[%clk 0:03:00.2]} 3... Bg7 {[%clk 0:02:54]} 4.
g3 {[%clk 0:03:00.8]} 4... O-O {[%clk 0:02:52]} 5. Bg2 {[%clk 0:03:01.4]} 5...
d6 {[%clk 0:02:50.5]} 6. O-O {[%clk 0:03:02]} 6... Nbd7 {[%clk 0:02:50.3]} 7.
Nc3 {[%clk 0:03:02.6]} 7... e5 {[%clk 0:02:50.3]} 8. e4 {[%clk 0:03:03.3]} 8...
exd4 {[%clk 0:02:48.5]} 9. Nxd4 {[%clk 0:03:04.2]} 9... a6 {[%clk 0:02:49.1]}
10. Re1 {[%clk 0:02:57]} 10... Ng4 {[%clk 0:02:43.3]} 11. h3 {[%clk 0:02:44.8]}
11... Qf6 {[%clk 0:02:35.2]} 12. hxg4 {[%clk 0:02:25.8]} 12... Qxd4 {[%clk
0:02:33.2]} 13. Qxd4 {[%clk 0:02:17.3]} 13... Bxd4 {[%clk 0:02:34.1]} 14. Nd5
{[%clk 0:02:17.9]} 14... c6 {[%clk 0:02:10.9]} 15. Ne7+ {[%clk 0:02:10.8]} 15...
Kg7 {[%clk 0:02:09.5]} 16. Rd1 {[%clk 0:02:11.2]} 16... Bc5 {[%clk 0:01:59]} 17.
b3 {[%clk 0:01:38]} 17... Re8 {[%clk 0:01:45.6]} 18. Nxc8 {[%clk 0:01:31.7]}
18... Raxc8 {[%clk 0:01:45.6]} 19. Kf1 {[%clk 0:01:20.3]} 19... a5 {[%clk
0:01:34.9]} 20. g5 {[%clk 0:01:18.4]} 20... Ne5 {[%clk 0:01:18.1]} 21. f4 {[%clk
0:01:05.9]} 21... Nd7 {[%clk 0:01:09]} 22. Bb2+ {[%clk 0:01:00]} 22... Kg8
{[%clk 0:01:00.9]} 23. Bc3 {[%clk 0:01:00.5]} 23... b6 {[%clk 0:01:00]} 24. Rd3
{[%clk 0:00:58.7]} 24... Nf8 {[%clk 0:00:54.1]} 25. Rad1 {[%clk 0:00:58.2]}
25... Ne6 {[%clk 0:00:53]} 26. Bf6 {[%clk 0:00:57.2]} 26... Rc7 {[%clk
0:00:38.6]} 27. Bh3 {[%clk 0:00:44.1]} 27... Ra8 {[%clk 0:00:36.5]} 28. Bc3
{[%clk 0:00:42.4]} 28... Kf8 {[%clk 0:00:20.1]} 29. Bg4 {[%clk 0:00:41.2]} 29...
Ke7 {[%clk 0:00:20.1]} 30. Kg2 {[%clk 0:00:40.8]} 30... b5 {[%clk 0:00:18.2]}
31. cxb5 {[%clk 0:00:37.9]} 31... cxb5 {[%clk 0:00:19.1]} 32. e5 {[%clk
0:00:35.2]} 32... dxe5 {[%clk 0:00:17.6]} 33. Bxe5 {[%clk 0:00:36.1]} 33... Rb7
{[%clk 0:00:18.1]} 34. Bf3 {[%clk 0:00:35.4]} 34... Raa7 {[%clk 0:00:16.6]} 35.
Bf6+ {[%clk 0:00:33.7]} 35... Ke8 {[%clk 0:00:15.1]} 36. Rd8+ {[%clk 0:00:33.4]}
36... Nxd8 {[%clk 0:00:15.7]} 1-0

[Event "*** Titled Tuesday Blitz"]
[Site "Chess.com"]
[Date "2020.04.14"]
[Round "1"]
[White "WIDBIFS"]
[Black "Kingsman132"]
[Result "1-0"]
[WhiteElo "2780"]
[BlackElo "2410"]
[TimeControl "180+1"]
[EndTime "10:06:54 PDT"]
[Termination "WIDBIFS won on time"]

1. d4 {[%clk 0:02:59.3]} 1... Nf6 {[%clk 0:02:59.1]} 2. Nf3 {[%clk 0:02:59.8]}
2... e6 {[%clk 0:02:59]} 3. Bf4 {[%clk 0:03:00]} 3... d5 {[%clk 0:02:58.4]} 4.
e3 {[%clk 0:03:00.3]} 4... Bd6 {[%clk 0:02:57.9]} 5. Bg3 {[%clk 0:03:00.8]} 5...
Ne4 {[%clk 0:02:55.1]} 6. Nbd2 {[%clk 0:02:59.9]} 6... O-O {[%clk 0:02:52.6]} 7.
Bd3 {[%clk 0:02:58.5]} 7... f5 {[%clk 0:02:48.6]} 8. Rc1 {[%clk 0:02:55.8]} 8...
c5 {[%clk 0:02:26.8]} 9. Bxd6 {[%clk 0:02:52.9]} 9... Qxd6 {[%clk 0:02:23.8]}
10. c3 {[%clk 0:02:52.9]} 10... c4 {[%clk 0:02:20.5]} 11. Bb1 {[%clk 0:02:48.5]}
11... b5 {[%clk 0:02:19.1]} 12. a3 {[%clk 0:02:39.1]} 12... Nc6 {[%clk
0:02:16.2]} 13. O-O {[%clk 0:02:38.9]} 13... a6 {[%clk 0:02:12.2]} 14. Ne1
{[%clk 0:02:34.4]} 14... Nxd2 {[%clk 0:01:41]} 15. Qxd2 {[%clk 0:02:35.3]} 15...
g5 {[%clk 0:01:38.2]} 16. e4 {[%clk 0:02:19.7]} 16... h6 {[%clk 0:01:36.7]} 17.
exf5 {[%clk 0:02:16.3]} 17... exf5 {[%clk 0:01:36.7]} 18. f4 {[%clk 0:02:16.6]}
18... g4 {[%clk 0:01:36.8]} 19. Nc2 {[%clk 0:02:16.5]} 19... Be6 {[%clk
0:01:31]} 20. Rce1 {[%clk 0:02:15]} 20... Rf6 {[%clk 0:01:30.3]} 21. Qf2 {[%clk
0:02:09.7]} 21... Ne7 {[%clk 0:01:26.1]} 22. Re5 {[%clk 0:02:08.5]} 22... Ng6
{[%clk 0:01:23.8]} 23. Rfe1 {[%clk 0:02:08.9]} 23... Re8 {[%clk 0:01:20.3]} 24.
Ne3 {[%clk 0:02:07.6]} 24... Ref8 {[%clk 0:01:20.8]} 25. g3 {[%clk 0:01:52]}
25... Qd7 {[%clk 0:01:18.2]} 26. Ng2 {[%clk 0:01:30.1]} 26... a5 {[%clk
0:01:15]} 27. Qe3 {[%clk 0:01:27.3]} 27... Kf7 {[%clk 0:01:09.1]} 28. Qe2 {[%clk
0:01:19.1]} 28... Nxe5 {[%clk 0:01:06.3]} 29. fxe5 {[%clk 0:01:16.6]} 29... Rg6
{[%clk 0:01:06.8]} 30. Nh4 {[%clk 0:01:13.8]} 30... Rg5 {[%clk 0:01:06.3]} 31.
Rf1 {[%clk 0:01:12.4]} 31... Ke8 {[%clk 0:01:01.7]} 32. Qe3 {[%clk 0:01:10]}
32... Kd8 {[%clk 0:00:57.4]} 33. Bc2 {[%clk 0:01:08.5]} 33... a4 {[%clk
0:00:42]} 34. Ng2 {[%clk 0:01:06.2]} 34... Kc7 {[%clk 0:00:22.5]} 35. Nf4 {[%clk
0:01:06.2]} 35... Kb6 {[%clk 0:00:11.4]} 36. Kf2 {[%clk 0:01:05.2]} 36... Ka5
{[%clk 0:00:10.1]} 37. Ke2 {[%clk 0:01:05.3]} 37... Ka6 {[%clk 0:00:10.7]} 38.
Kd2 {[%clk 0:01:05.6]} 38... Ka5 {[%clk 0:00:11.6]} 39. Kc1 {[%clk 0:01:06.2]}
1-0

[Event "*** Titled Tuesday Blitz"]
[Site "Chess.com"]
[Date "2020.04.14"]
[Round "1"]
[White "1stSecond"]
[Black "BIG_Pirate"]
[Result "1-0"]
[WhiteElo "2711"]
[BlackElo "2367"]
[TimeControl "180+1"]
[EndTime "10:06:56 PDT"]
[Termination "1stSecond won on time"]

1. Nf3 {[%clk 0:02:58.7]} 1... d5 {[%clk 0:02:57.7]} 2. g3 {[%clk 0:02:57.6]}
2... c6 {[%clk 0:02:54.1]} 3. Bg2 {[%clk 0:02:57.2]} 3... Nf6 {[%clk 0:02:54]}
4. O-O {[%clk 0:02:55.9]} 4... Bf5 {[%clk 0:02:54.4]} 5. d3 {[%clk 0:02:54]}
5... e6 {[%clk 0:02:51.4]} 6. c4 {[%clk 0:02:53.3]} 6... dxc4 {[%clk 0:02:49.2]}
7. dxc4 {[%clk 0:02:50.5]} 7... Qxd1 {[%clk 0:02:50.1]} 8. Rxd1 {[%clk
0:02:50.8]} 8... Nbd7 {[%clk 0:02:50.5]} 9. Nc3 {[%clk 0:02:41.4]} 9... Bc2
{[%clk 0:02:49.4]} 10. Rd2 {[%clk 0:02:39.2]} 10... Bg6 {[%clk 0:02:49.1]} 11.
b3 {[%clk 0:02:33.5]} 11... Bb4 {[%clk 0:02:42.1]} 12. Bb2 {[%clk 0:02:33.5]}
12... Bxc3 {[%clk 0:02:41]} 13. Bxc3 {[%clk 0:02:34.4]} 13... Ne4 {[%clk
0:02:41.1]} 14. Bxg7 {[%clk 0:01:48.3]} 14... Rg8 {[%clk 0:01:13.4]} 15. Rxd7
{[%clk 0:01:46.8]} 15... Kxd7 {[%clk 0:01:11.8]} 16. Bb2 {[%clk 0:01:47.2]}
16... Ke7 {[%clk 0:00:35.6]} 17. Ne5 {[%clk 0:01:43.2]} 17... f5 {[%clk
0:00:20.5]} 18. Ba3+ {[%clk 0:01:38.6]} 18... Kf6 {[%clk 0:00:20.3]} 19. Nd7+
{[%clk 0:01:39.1]} 19... Kf7 {[%clk 0:00:17.3]} 20. Ne5+ {[%clk 0:01:37.9]}
20... Kf6 {[%clk 0:00:17.4]} 21. Bb2 {[%clk 0:01:38.8]} 21... Ke7 {[%clk
0:00:15.6]} 22. f3 {[%clk 0:01:27.1]} 22... Nf6 {[%clk 0:00:08]} 23. Ba3+ {[%clk
0:01:24.5]} 23... Ke8 {[%clk 0:00:08.2]} 24. Kf2 {[%clk 0:01:19.9]} 24... Rd8
{[%clk 0:00:08.1]} 25. Ke3 {[%clk 0:01:19.4]} 25... Nd7 {[%clk 0:00:07.5]} 26.
Nd3 {[%clk 0:01:11.7]} 26... Kf7 {[%clk 0:00:07.6]} 27. Bd6 {[%clk 0:01:02.6]}
27... Rge8 {[%clk 0:00:04.5]} 28. f4 {[%clk 0:00:59.3]} 28... Nf6 {[%clk
0:00:04.5]} 29. Ne5+ {[%clk 0:00:58.1]} 29... Kg7 {[%clk 0:00:05.1]} 30. c5
{[%clk 0:00:58.6]} 30... Nd5+ {[%clk 0:00:04.4]} 31. Bxd5 {[%clk 0:00:58.2]}
31... exd5 {[%clk 0:00:04.2]} 32. a4 {[%clk 0:00:54.9]} 32... Bh5 {[%clk
0:00:04.1]} 33. a5 {[%clk 0:00:54.6]} 33... Ra8 {[%clk 0:00:02.7]} 34. Ra4
{[%clk 0:00:54.2]} 34... Red8 {[%clk 0:00:01.3]} 35. Rb4 {[%clk 0:00:54.1]}
35... b6 {[%clk 0:00:01.8]} 36. axb6 {[%clk 0:00:52.1]} 36... axb6 {[%clk
0:00:01.7]} 37. Rxb6 {[%clk 0:00:53]} 37... Rdc8 {[%clk 0:00:01.4]} 38. Rb7+
{[%clk 0:00:53.1]} 1-0

[Event "*** Titled Tuesday Blitz"]
[Site "Chess.com"]
[Date "2020.04.14"]
[Round "1"]
[White "pedroholly22"]
[Black "Shahinyan_ChessMood"]
[Result "0-1"]
[WhiteElo "2337"]
[BlackElo "2680"]
[TimeControl "180+1"]
[EndTime "10:06:56 PDT"]
[Termination "Shahinyan_ChessMood won by resignation"]

1. e4 {[%clk 0:02:59.8]} 1... e6 {[%clk 0:02:52.2]} 2. d4 {[%clk 0:02:53.9]}
2... d5 {[%clk 0:02:53.1]} 3. Nc3 {[%clk 0:02:52.2]} 3... Bb4 {[%clk 0:02:51.8]}
4. e5 {[%clk 0:02:45.8]} 4... c5 {[%clk 0:02:50.3]} 5. a3 {[%clk 0:02:44.7]}
5... Bxc3+ {[%clk 0:02:49.6]} 6. bxc3 {[%clk 0:02:42.5]} 6... Ne7 {[%clk
0:02:50.5]} 7. Qg4 {[%clk 0:02:40.8]} 7... Qc7 {[%clk 0:02:50.5]} 8. Qxg7 {[%clk
0:02:39.8]} 8... Rg8 {[%clk 0:02:50.7]} 9. Qxh7 {[%clk 0:02:39.4]} 9... cxd4
{[%clk 0:02:49.8]} 10. Ne2 {[%clk 0:02:25.4]} 10... dxc3 {[%clk 0:02:49.2]} 11.
f4 {[%clk 0:02:24.8]} 11... Nbc6 {[%clk 0:02:47.1]} 12. Qd3 {[%clk 0:02:23.9]}
12... d4 {[%clk 0:02:46.5]} 13. Nxd4 {[%clk 0:02:16.6]} 13... Nxd4 {[%clk
0:02:47.4]} 14. Qxd4 {[%clk 0:02:16.8]} 14... Bd7 {[%clk 0:02:47.6]} 15. h4
{[%clk 0:02:06.6]} 15... Nf5 {[%clk 0:02:42.6]} 16. Qf2 {[%clk 0:02:05.6]} 16...
Qc6 {[%clk 0:01:59.5]} 17. Rh3 {[%clk 0:01:48.3]} 17... Qe4+ {[%clk 0:01:50.4]}
18. Qe2 {[%clk 0:01:43.4]} 18... Qxe2+ {[%clk 0:01:13.7]} 19. Bxe2 {[%clk
0:01:24.6]} 19... Rxg2 {[%clk 0:01:12.4]} 20. Bf3 {[%clk 0:01:21.6]} 20... Rxc2
{[%clk 0:01:08]} 21. Bxb7 {[%clk 0:01:18.9]} 21... Rb8 {[%clk 0:00:53.8]} 22.
Be4 {[%clk 0:01:17.7]} 22... Nd4 {[%clk 0:00:52]} 23. Be3 {[%clk 0:00:37.7]}
23... Re2+ {[%clk 0:00:32.1]} 24. Kf1 {[%clk 0:00:26.5]} 24... Rbb2 {[%clk
0:00:28]} 25. Bxd4 {[%clk 0:00:19]} 25... Rxe4 {[%clk 0:00:24.2]} 26. Bxc3
{[%clk 0:00:19]} 26... Rxf4+ {[%clk 0:00:22.2]} 27. Ke1 {[%clk 0:00:16.4]} 27...
Re4+ {[%clk 0:00:21]} 28. Kd1 {[%clk 0:00:16.2]} 28... Ba4+ {[%clk 0:00:21.5]}
29. Kc1 {[%clk 0:00:14.3]} 29... Rc2+ {[%clk 0:00:22.4]} 30. Kb1 {[%clk
0:00:14.5]} 30... Rg4 {[%clk 0:00:17.3]} 31. Ra2 {[%clk 0:00:14.8]} 31... Rg1+
{[%clk 0:00:16.9]} 0-1